[Event "Early-Titled-Tuesday-Blitz-January-23-2024"]
[Site "Chess.com"]
[Date "2024.01.23"]
[Round "11"]
[White "baki83"]
[Black "karinachess1"]
[Result "1/2-1/2"]
[WhiteElo "2828"]
[BlackElo "2631"]
[TimeControl "180+1"]
[EndTime "10:08:12 PST"]
[Termination "Game drawn - insufficient material"]

1. e4 {[%clk 0:02:59.4]} 1... e5 {[%clk 0:02:59.9]} 2. Nf3 {[%clk 0:02:59.3]}
2... Nc6 {[%clk 0:03:00.2]} 3. Bc4 {[%clk 0:02:58.8]} 3... Nf6 {[%clk
0:03:00.3]} 4. d3 {[%clk 0:02:58.7]} 4... h6 {[%clk 0:03:00.5]} 5. Nc3 {[%clk
0:02:57.9]} 5... d6 {[%clk 0:03:00.6]} 6. a4 {[%clk 0:02:55.1]} 6... g5 {[%clk
0:02:59.8]} 7. Be3 {[%clk 0:02:50.9]} 7... Bg7 {[%clk 0:02:57.7]} 8. Nd5 {[%clk
0:02:50.4]} 8... Be6 {[%clk 0:02:53]} 9. c3 {[%clk 0:02:45.6]} 9... Qd7 {[%clk
0:02:49.9]} 10. Qb3 {[%clk 0:02:31.3]} 10... Na5 {[%clk 0:02:38]} 11. Nxf6+
{[%clk 0:02:30]} 11... Bxf6 {[%clk 0:02:37.9]} 12. Bxe6 {[%clk 0:02:30.3]} 12...
fxe6 {[%clk 0:02:37.8]} 13. Qb5 {[%clk 0:02:18.3]} 13... b6 {[%clk 0:02:30]} 14.
b4 {[%clk 0:02:10.8]} 14... Nc6 {[%clk 0:02:13.4]} 15. Qa6 {[%clk 0:01:54.5]}
15... O-O {[%clk 0:02:03.9]} 16. O-O {[%clk 0:01:52]} 16... d5 {[%clk
0:01:55.8]} 17. h3 {[%clk 0:01:28]} 17... Bg7 {[%clk 0:01:24.2]} 18. a5 {[%clk
0:01:20.2]} 18... Ne7 {[%clk 0:01:06.1]} 19. axb6 {[%clk 0:01:17.8]} 19... cxb6
{[%clk 0:00:46.4]} 20. Qa4 {[%clk 0:00:52.4]} 20... Qc7 {[%clk 0:00:43.3]} 21.
Qb3 {[%clk 0:00:48.1]} 21... Qd7 {[%clk 0:00:38.7]} 22. Rfd1 {[%clk 0:00:43.7]}
22... Ng6 {[%clk 0:00:37.4]} 23. d4 {[%clk 0:00:20.6]} 23... dxe4 {[%clk
0:00:34.5]} 24. Nxe5 {[%clk 0:00:20.4]} 24... Bxe5 {[%clk 0:00:27.2]} 25. dxe5
{[%clk 0:00:21.3]} 25... Qf7 {[%clk 0:00:27.9]} 26. Rd6 {[%clk 0:00:20.6]} 26...
Rfe8 {[%clk 0:00:19.1]} 27. Bd4 {[%clk 0:00:18.2]} 27... Nf4 {[%clk 0:00:16.9]}
28. Qc2 {[%clk 0:00:15.8]} 28... Qf5 {[%clk 0:00:15.9]} 29. Re1 {[%clk
0:00:14.5]} 29... Nd3 {[%clk 0:00:14.8]} 30. Re2 {[%clk 0:00:13.7]} 30... Rf8
{[%clk 0:00:12.4]} 31. Qa2 {[%clk 0:00:13.1]} 31... Rfe8 {[%clk 0:00:10.9]} 32.
Qd2 {[%clk 0:00:12.4]} 32... Rf8 {[%clk 0:00:10.8]} 33. Qe3 {[%clk 0:00:12.6]}
33... Nxe5 {[%clk 0:00:08.7]} 34. Qxe4 {[%clk 0:00:11.5]} 34... Qxe4 {[%clk
0:00:07.3]} 35. Rxe4 {[%clk 0:00:12.4]} 35... Nc4 {[%clk 0:00:05.8]} 36. Rd7
{[%clk 0:00:12.1]} 36... Rf7 {[%clk 0:00:05.3]} 37. Rxf7 {[%clk 0:00:07.4]}
37... Kxf7 {[%clk 0:00:06.2]} 38. h4 {[%clk 0:00:07.9]} 38... a5 {[%clk
0:00:04.5]} 39. hxg5 {[%clk 0:00:07.8]} 39... hxg5 {[%clk 0:00:05.4]} 40. bxa5
{[%clk 0:00:07.9]} 40... bxa5 {[%clk 0:00:06.3]} 41. Bc5 {[%clk 0:00:08.5]}
41... Nd2 {[%clk 0:00:06.1]} 42. Ra4 {[%clk 0:00:08.8]} 42... Nb3 {[%clk
0:00:05.9]} 43. Bb6 {[%clk 0:00:08.5]} 43... Ke8 {[%clk 0:00:05.5]} 44. c4
{[%clk 0:00:07.8]} 44... Kd7 {[%clk 0:00:05.7]} 45. c5 {[%clk 0:00:06.1]} 45...
Kc6 {[%clk 0:00:06.2]} 46. g3 {[%clk 0:00:06.2]} 46... Nxc5 {[%clk 0:00:06.5]}
47. Rxa5 {[%clk 0:00:05.6]} 47... Rxa5 {[%clk 0:00:06.4]} 48. Bxa5 {[%clk
0:00:06.5]} 48... Ne4 {[%clk 0:00:06.5]} 49. g4 {[%clk 0:00:06.3]} 49... Kd5
{[%clk 0:00:06.9]} 50. Kg2 {[%clk 0:00:06.7]} 50... e5 {[%clk 0:00:05.9]} 51. f3
{[%clk 0:00:07]} 51... Nf6 {[%clk 0:00:06]} 52. Bd2 {[%clk 0:00:07.4]} 52... e4
{[%clk 0:00:05.7]} 53. Bxg5 {[%clk 0:00:06.6]} 53... exf3+ {[%clk 0:00:06]} 54.
Kxf3 {[%clk 0:00:07.2]} 54... Nxg4 {[%clk 0:00:06.4]} 1/2-1/2

[Event "Early-Titled-Tuesday-Blitz-January-23-2024"]
[Site "Chess.com"]
[Date "2024.01.23"]
[Round "11"]
[White "Arystanner"]
[Black "BogdanDeac"]
[Result "0-1"]
[WhiteElo "2787"]
[BlackElo "3063"]
[TimeControl "180+1"]
[EndTime "10:08:13 PST"]
[Termination "BogdanDeac won by resignation"]

1. e4 {[%clk 0:02:41.8]} 1... e5 {[%clk 0:02:59.5]} 2. Nf3 {[%clk 0:02:42]} 2...
Nc6 {[%clk 0:03:00]} 3. Bb5 {[%clk 0:02:41.6]} 3... a6 {[%clk 0:03:00.2]} 4. Ba4
{[%clk 0:02:41.9]} 4... Nf6 {[%clk 0:03:00.8]} 5. d3 {[%clk 0:02:42.1]} 5... d6
{[%clk 0:02:57.6]} 6. c4 {[%clk 0:02:41.5]} 6... g6 {[%clk 0:02:45.6]} 7. Nc3
{[%clk 0:02:40.3]} 7... Bg7 {[%clk 0:02:46.1]} 8. Nd5 {[%clk 0:02:40.4]} 8... h6
{[%clk 0:02:41.7]} 9. Nb4 {[%clk 0:02:39.3]} 9... Bd7 {[%clk 0:02:41.1]} 10.
Nxc6 {[%clk 0:02:39.1]} 10... bxc6 {[%clk 0:02:41.2]} 11. O-O {[%clk 0:02:38.9]}
11... O-O {[%clk 0:02:23.9]} 12. c5 {[%clk 0:02:38.6]} 12... Nh7 {[%clk
0:02:22.4]} 13. Re1 {[%clk 0:02:36.2]} 13... f5 {[%clk 0:02:20.9]} 14. h3 {[%clk
0:02:30.2]} 14... Kh8 {[%clk 0:02:13.7]} 15. Bd2 {[%clk 0:02:25.2]} 15... Nf6
{[%clk 0:02:00.4]} 16. Ba5 {[%clk 0:02:24.2]} 16... Qb8 {[%clk 0:01:52.8]} 17.
b3 {[%clk 0:02:23.2]} 17... Re8 {[%clk 0:01:44.8]} 18. Rc1 {[%clk 0:02:22.5]}
18... Qb7 {[%clk 0:01:43.2]} 19. Qc2 {[%clk 0:02:21.6]} 19... Rac8 {[%clk
0:01:41.3]} 20. Nh4 {[%clk 0:02:16.6]} 20... Kh7 {[%clk 0:01:40.6]} 21. exf5
{[%clk 0:02:17]} 21... gxf5 {[%clk 0:01:39.8]} 22. d4 {[%clk 0:02:17.4]} 22...
e4 {[%clk 0:01:39.8]} 23. Rcd1 {[%clk 0:01:41.6]} 23... d5 {[%clk 0:01:13.6]}
24. Bd2 {[%clk 0:01:40.3]} 24... Rf8 {[%clk 0:01:13.7]} 25. Bf4 {[%clk
0:01:24.3]} 25... Nh5 {[%clk 0:01:10.5]} 26. Be5 {[%clk 0:01:23.9]} 26... Bxe5
{[%clk 0:00:58.7]} 27. dxe5 {[%clk 0:01:24.8]} 27... Rce8 {[%clk 0:00:58.9]} 28.
Rxd5 {[%clk 0:01:23.6]} 28... cxd5 {[%clk 0:00:50.9]} 29. Bxd7 {[%clk
0:01:23.7]} 29... Rxe5 {[%clk 0:00:23.9]} 30. Qc3 {[%clk 0:01:10.8]} 30... c6
{[%clk 0:00:21.7]} 31. Qxe5 {[%clk 0:00:58.2]} 31... Qxd7 {[%clk 0:00:21.2]} 32.
Rd1 {[%clk 0:00:41.9]} 32... Ng7 {[%clk 0:00:18]} 33. g3 {[%clk 0:00:34.9]}
33... Re8 {[%clk 0:00:10.3]} 34. Qf6 {[%clk 0:00:31.3]} 34... Re6 {[%clk
0:00:07.1]} 35. Qf8 {[%clk 0:00:29.6]} 35... Re8 {[%clk 0:00:05.8]} 36. Qf6
{[%clk 0:00:29.9]} 36... Qe6 {[%clk 0:00:05.2]} 37. Qd4 {[%clk 0:00:25]} 37...
f4 {[%clk 0:00:04.5]} 38. Kh2 {[%clk 0:00:18.6]} 38... fxg3+ {[%clk 0:00:04]}
39. fxg3 {[%clk 0:00:19.5]} 39... Rf8 {[%clk 0:00:04.6]} 40. Rd2 {[%clk
0:00:18.3]} 40... Rf1 {[%clk 0:00:04.2]} 41. Rf2 {[%clk 0:00:18.3]} 41... Rxf2+
{[%clk 0:00:04.5]} 42. Qxf2 {[%clk 0:00:19.2]} 42... e3 {[%clk 0:00:05.1]} 43.
Qc2+ {[%clk 0:00:19.5]} 43... Kg8 {[%clk 0:00:05.3]} 44. Qe2 {[%clk 0:00:15.3]}
44... d4 {[%clk 0:00:05.1]} 45. Ng2 {[%clk 0:00:15]} 45... Qe4 {[%clk
0:00:05.2]} 46. Nf4 {[%clk 0:00:15.1]} 46... Nf5 {[%clk 0:00:04.7]} 47. Qg4+
{[%clk 0:00:15.1]} 47... Kf8 {[%clk 0:00:04.2]} 48. Qg6 {[%clk 0:00:15]} 48...
Qc2+ {[%clk 0:00:03.7]} 49. Kg1 {[%clk 0:00:14.4]} 49... Qf2+ {[%clk 0:00:03.9]}
50. Kh1 {[%clk 0:00:14.5]} 50... Nxg3+ {[%clk 0:00:04.8]} 0-1

[Event "Early-Titled-Tuesday-Blitz-January-23-2024"]
[Site "Chess.com"]
[Date "2024.01.23"]
[Round "11"]
[White "tigurones"]
[Black "MikaelyanArman"]
[Result "1/2-1/2"]
[WhiteElo "2502"]
[BlackElo "2841"]
[TimeControl "180+1"]
[EndTime "10:08:13 PST"]
[Termination "Game drawn by repetition"]

1. d4 {[%clk 0:02:57.6]} 1... Nf6 {[%clk 0:02:59.7]} 2. Nf3 {[%clk 0:02:56]}
2... d6 {[%clk 0:02:59.7]} 3. c4 {[%clk 0:02:52.6]} 3... Bg4 {[%clk 0:02:57.4]}
4. g3 {[%clk 0:02:51.5]} 4... Bxf3 {[%clk 0:02:57.2]} 5. exf3 {[%clk 0:02:52.4]}
5... g6 {[%clk 0:02:54.6]} 6. Bg2 {[%clk 0:02:52.6]} 6... Bg7 {[%clk 0:02:55.2]}
7. O-O {[%clk 0:02:51.6]} 7... O-O {[%clk 0:02:55.3]} 8. f4 {[%clk 0:02:51.6]}
8... c6 {[%clk 0:02:55.9]} 9. Nc3 {[%clk 0:02:51.2]} 9... Nbd7 {[%clk
0:02:54.1]} 10. Re1 {[%clk 0:02:50.9]} 10... Re8 {[%clk 0:02:51.8]} 11. b3
{[%clk 0:02:46]} 11... e6 {[%clk 0:02:49.9]} 12. Bb2 {[%clk 0:02:43.3]} 12... d5
{[%clk 0:02:50.2]} 13. c5 {[%clk 0:02:42.7]} 13... h5 {[%clk 0:02:49.6]} 14. Ne2
{[%clk 0:02:38.2]} 14... Ne4 {[%clk 0:02:46.2]} 15. Bxe4 {[%clk 0:02:36.2]}
15... dxe4 {[%clk 0:02:47.1]} 16. Nc3 {[%clk 0:02:32.1]} 16... f5 {[%clk
0:02:46.3]} 17. Qd2 {[%clk 0:02:23.3]} 17... Nxc5 {[%clk 0:02:45.9]} 18. Ne2
{[%clk 0:02:06.4]} 18... Nd3 {[%clk 0:02:45.9]} 19. Red1 {[%clk 0:02:05.6]}
19... c5 {[%clk 0:02:36.7]} 20. Nc1 {[%clk 0:01:54.9]} 20... Nxb2 {[%clk
0:02:35.7]} 21. Qxb2 {[%clk 0:01:54.7]} 21... cxd4 {[%clk 0:02:32.2]} 22. Rb1
{[%clk 0:01:50.5]} 22... d3 {[%clk 0:02:31.5]} 23. Qa3 {[%clk 0:01:47.5]} 23...
Qb6 {[%clk 0:02:29.1]} 24. b4 {[%clk 0:01:43.5]} 24... Rac8 {[%clk 0:02:28.6]}
25. Nb3 {[%clk 0:01:42.6]} 25... Rc2 {[%clk 0:02:24.9]} 26. Rd2 {[%clk
0:01:41.6]} 26... Rec8 {[%clk 0:02:03.8]} 27. Rxc2 {[%clk 0:01:36.4]} 27... dxc2
{[%clk 0:01:36]} 28. Rc1 {[%clk 0:01:32.9]} 28... Rc3 {[%clk 0:01:31.7]} 29. Qa4
{[%clk 0:01:26.3]} 29... e3 {[%clk 0:01:32.1]} 30. Nc5 {[%clk 0:01:24.2]} 30...
e2 {[%clk 0:01:13.9]} 31. Qe8+ {[%clk 0:01:16.3]} 31... Kh7 {[%clk 0:01:13.9]}
32. Nxe6 {[%clk 0:01:14.8]} 32... h4 {[%clk 0:00:15.2]} 33. Ng5+ {[%clk
0:01:11.8]} 33... Kh6 {[%clk 0:00:15.8]} 34. Qg8 {[%clk 0:01:07.8]} 34... Kh5
{[%clk 0:00:10.9]} 35. Qh7+ {[%clk 0:01:07.5]} 35... Bh6 {[%clk 0:00:11.4]} 36.
Nf7 {[%clk 0:01:00.7]} 36... g5 {[%clk 0:00:11.7]} 37. Qxf5 {[%clk 0:00:45.5]}
37... hxg3 {[%clk 0:00:09.7]} 38. Qh3+ {[%clk 0:00:16.6]} 38... Kg6 {[%clk
0:00:09.6]} 39. Ne5+ {[%clk 0:00:16.4]} 39... Kg7 {[%clk 0:00:10.1]} 40. Qd7+
{[%clk 0:00:16.1]} 40... Kh8 {[%clk 0:00:07.9]} 41. Qe8+ {[%clk 0:00:15.6]}
41... Kh7 {[%clk 0:00:06.9]} 42. Qf7+ {[%clk 0:00:14.2]} 42... Bg7 {[%clk
0:00:07]} 43. Qf5+ {[%clk 0:00:09.1]} 43... Kg8 {[%clk 0:00:06.1]} 44. Qf7+
{[%clk 0:00:08.7]} 44... Kh7 {[%clk 0:00:04.8]} 45. Qf5+ {[%clk 0:00:08.8]}
45... Kh8 {[%clk 0:00:04.4]} 46. Ng6+ {[%clk 0:00:08.4]} 46... Kg8 {[%clk
0:00:03.1]} 47. Ne7+ {[%clk 0:00:07.8]} 47... Kh8 {[%clk 0:00:03.7]} 48. Ng6+
{[%clk 0:00:06.6]} 48... Kh7 {[%clk 0:00:02.7]} 49. Ne7+ {[%clk 0:00:02.4]}
49... Kh8 {[%clk 0:00:02.9]} 50. Ng6+ {[%clk 0:00:02.5]} 1/2-1/2

[Event "Early-Titled-Tuesday-Blitz-January-23-2024"]
[Site "Chess.com"]
[Date "2024.01.23"]
[Round "11"]
[White "Glidzhian_Gor"]
[Black "Egorov_Pavel"]
[Result "1-0"]
[WhiteElo "2577"]
[BlackElo "2487"]
[TimeControl "180+1"]
[EndTime "10:08:13 PST"]
[Termination "Glidzhian_Gor won by checkmate"]

1. e4 {[%clk 0:03:00.9]} 1... c5 {[%clk 0:03:00]} 2. d4 {[%clk 0:03:00.6]} 2...
cxd4 {[%clk 0:03:00.1]} 3. c3 {[%clk 0:03:01.3]} 3... Nf6 {[%clk 0:03:00.8]} 4.
e5 {[%clk 0:03:01.1]} 4... Nd5 {[%clk 0:03:01.4]} 5. Nf3 {[%clk 0:03:01.9]} 5...
Nc6 {[%clk 0:03:00.3]} 6. cxd4 {[%clk 0:03:02.2]} 6... d6 {[%clk 0:03:00.6]} 7.
Nc3 {[%clk 0:03:02.8]} 7... dxe5 {[%clk 0:02:57.7]} 8. dxe5 {[%clk 0:03:03.7]}
8... Be6 {[%clk 0:02:58.2]} 9. Nxd5 {[%clk 0:03:00]} 9... Qxd5 {[%clk
0:02:57.8]} 10. Be2 {[%clk 0:02:57.2]} 10... Qxd1+ {[%clk 0:02:57.3]} 11. Bxd1
{[%clk 0:02:57.8]} 11... g6 {[%clk 0:02:57.6]} 12. O-O {[%clk 0:02:55.5]} 12...
Bg7 {[%clk 0:02:58]} 13. Bf4 {[%clk 0:02:56]} 13... O-O {[%clk 0:02:53.5]} 14.
Ba4 {[%clk 0:02:55.6]} 14... Bd5 {[%clk 0:02:52.7]} 15. Bxc6 {[%clk 0:02:54.8]}
15... Bxc6 {[%clk 0:02:52.3]} 16. Nd4 {[%clk 0:02:53.1]} 16... Bd5 {[%clk
0:02:51.5]} 17. Rfd1 {[%clk 0:02:47.3]} 17... a6 {[%clk 0:02:51.3]} 18. Bg3
{[%clk 0:02:41.9]} 18... e6 {[%clk 0:02:49.2]} 19. f4 {[%clk 0:02:39.8]} 19...
Rac8 {[%clk 0:02:48.8]} 20. Rac1 {[%clk 0:02:17]} 20... h6 {[%clk 0:02:43.6]}
21. Bf2 {[%clk 0:02:09.4]} 21... Rfd8 {[%clk 0:02:36]} 22. a3 {[%clk 0:01:55]}
22... g5 {[%clk 0:02:34.5]} 23. g3 {[%clk 0:01:53.8]} 23... Bf8 {[%clk
0:02:29.3]} 24. Be3 {[%clk 0:01:49.9]} 24... gxf4 {[%clk 0:02:26.7]} 25. gxf4
{[%clk 0:01:50.8]} 25... Kh7 {[%clk 0:02:26.3]} 26. Kf2 {[%clk 0:01:51]} 26...
Be7 {[%clk 0:02:22.4]} 27. Ne2 {[%clk 0:01:48]} 27... Rg8 {[%clk 0:02:06.6]} 28.
Rxc8 {[%clk 0:01:34.9]} 28... Rxc8 {[%clk 0:02:02.2]} 29. Nc3 {[%clk 0:01:22.9]}
29... Bh4+ {[%clk 0:01:39.2]} 30. Ke2 {[%clk 0:01:20.9]} 30... Bc4+ {[%clk
0:01:39.6]} 31. Kf3 {[%clk 0:01:20.5]} 31... b5 {[%clk 0:01:17.4]} 32. Kg4
{[%clk 0:00:40.9]} 32... Bd8 {[%clk 0:01:04.5]} 33. Rd7 {[%clk 0:00:32.6]} 33...
Kg6 {[%clk 0:01:04]} 34. Rd6 {[%clk 0:00:29.7]} 34... h5+ {[%clk 0:00:55.1]} 35.
Kg3 {[%clk 0:00:29.9]} 35... Kf5 {[%clk 0:00:51.7]} 36. Rd7 {[%clk 0:00:23.5]}
36... h4+ {[%clk 0:00:39.4]} 37. Kf2 {[%clk 0:00:22.9]} 37... f6 {[%clk
0:00:38.5]} 38. Rf7 {[%clk 0:00:18.9]} 38... a5 {[%clk 0:00:36.9]} 39. Bd4
{[%clk 0:00:16.7]} 39... b4 {[%clk 0:00:32.7]} 40. Nd1 {[%clk 0:00:15.5]} 40...
Kxf4 {[%clk 0:00:29.8]} 41. exf6 {[%clk 0:00:14.7]} 41... Ke4 {[%clk 0:00:30.3]}
42. Rd7 {[%clk 0:00:14.5]} 42... Bb5 {[%clk 0:00:20.2]} 43. f7 {[%clk
0:00:11.8]} 43... Bxd7 {[%clk 0:00:19.4]} 44. f8=Q {[%clk 0:00:12.1]} 44... Kxd4
{[%clk 0:00:18.6]} 45. Qd6+ {[%clk 0:00:12.4]} 45... Ke4 {[%clk 0:00:16.4]} 46.
Qxd7 {[%clk 0:00:12.2]} 46... Bb6+ {[%clk 0:00:17.2]} 47. Ke1 {[%clk 0:00:12.5]}
47... Rg8 {[%clk 0:00:02]} 48. Qxe6+ {[%clk 0:00:12.5]} 48... Kd3 {[%clk
0:00:02.9]} 49. Qxg8 {[%clk 0:00:12.6]} 49... Bd4 {[%clk 0:00:03.2]} 50. Qd5
{[%clk 0:00:12.6]} 50... bxa3 {[%clk 0:00:02.9]} 51. bxa3 {[%clk 0:00:13.2]}
51... a4 {[%clk 0:00:03.7]} 52. h3 {[%clk 0:00:13.3]} 52... Kc2 {[%clk
0:00:03.8]} 53. Qxd4 {[%clk 0:00:13.6]} 53... Kb1 {[%clk 0:00:04.7]} 54. Qb2#
{[%clk 0:00:13.3]} 1-0

[Event "Early-Titled-Tuesday-Blitz-January-23-2024"]
[Site "Chess.com"]
[Date "2024.01.23"]
[Round "11"]
[White "kai_nov"]
[Black "HajiyevKanan"]
[Result "0-1"]
[WhiteElo "2289"]
[BlackElo "2560"]
[TimeControl "180+1"]
[EndTime "10:08:14 PST"]
[Termination "HajiyevKanan won on time"]

1. d4 {[%clk 0:03:00.9]} 1... d5 {[%clk 0:02:53.9]} 2. Nc3 {[%clk 0:02:59]} 2...
c6 {[%clk 0:02:53.7]} 3. Nf3 {[%clk 0:02:58.4]} 3... Nf6 {[%clk 0:02:54]} 4. Bg5
{[%clk 0:02:57.7]} 4... Ne4 {[%clk 0:02:54.1]} 5. e3 {[%clk 0:02:52.9]} 5...
Nxg5 {[%clk 0:02:53.9]} 6. Nxg5 {[%clk 0:02:52.5]} 6... e5 {[%clk 0:02:54.8]} 7.
Nf3 {[%clk 0:02:50.4]} 7... e4 {[%clk 0:02:55.3]} 8. Nd2 {[%clk 0:02:49.8]} 8...
a5 {[%clk 0:02:52.4]} 9. Be2 {[%clk 0:02:49.7]} 9... a4 {[%clk 0:02:52.7]} 10.
O-O {[%clk 0:02:48.4]} 10... a3 {[%clk 0:02:51.5]} 11. bxa3 {[%clk 0:02:37.1]}
11... Bxa3 {[%clk 0:02:52.4]} 12. Rb1 {[%clk 0:02:34.7]} 12... O-O {[%clk
0:02:52.6]} 13. f3 {[%clk 0:02:28.8]} 13... exf3 {[%clk 0:02:52.4]} 14. Nxf3
{[%clk 0:02:27.5]} 14... Qe7 {[%clk 0:02:52.5]} 15. Qd2 {[%clk 0:02:24.1]} 15...
Bb4 {[%clk 0:02:52.3]} 16. Bd3 {[%clk 0:02:20.2]} 16... Re8 {[%clk 0:02:45.7]}
17. Rfe1 {[%clk 0:01:51.5]} 17... Rxa2 {[%clk 0:02:39.4]} 18. Nxd5 {[%clk
0:01:34.9]} 18... Bxd2 {[%clk 0:02:30.9]} 19. Nxe7+ {[%clk 0:01:33.7]} 19...
Rxe7 {[%clk 0:02:31.8]} 20. Nxd2 {[%clk 0:01:33.7]} 20... Be6 {[%clk 0:02:15.8]}
21. Nb3 {[%clk 0:01:18]} 21... Bxb3 {[%clk 0:02:14.5]} 22. Rxb3 {[%clk
0:01:17.9]} 22... g6 {[%clk 0:02:04.9]} 23. e4 {[%clk 0:01:16.4]} 23... Ra7
{[%clk 0:01:59]} 24. Kf2 {[%clk 0:01:12.6]} 24... Nd7 {[%clk 0:01:58.4]} 25. c4
{[%clk 0:01:06.9]} 25... c5 {[%clk 0:01:55.9]} 26. d5 {[%clk 0:01:01.5]} 26...
Ne5 {[%clk 0:01:56]} 27. h3 {[%clk 0:00:56.1]} 27... b5 {[%clk 0:01:47.4]} 28.
Rc1 {[%clk 0:00:24.1]} 28... b4 {[%clk 0:01:45.1]} 29. Ke3 {[%clk 0:00:20.5]}
29... g5 {[%clk 0:01:34.1]} 30. Be2 {[%clk 0:00:20.4]} 30... Ra2 {[%clk
0:01:32.9]} 31. g4 {[%clk 0:00:15.9]} 31... Rea7 {[%clk 0:01:32.5]} 32. d6
{[%clk 0:00:14.6]} 32... R7a3 {[%clk 0:01:28.1]} 33. Rxa3 {[%clk 0:00:14.4]}
33... Rxa3+ {[%clk 0:01:29]} 34. Kf2 {[%clk 0:00:13.9]} 34... Kf8 {[%clk
0:01:27.9]} 35. Rd1 {[%clk 0:00:12.5]} 35... Nd7 {[%clk 0:01:12.9]} 36. Rd5
{[%clk 0:00:10]} 36... f6 {[%clk 0:01:11.7]} 37. Bd3 {[%clk 0:00:08.8]} 37...
Ra7 {[%clk 0:00:52]} 38. Bc2 {[%clk 0:00:08.3]} 38... Kf7 {[%clk 0:00:48.3]} 39.
Ke3 {[%clk 0:00:08.2]} 39... Ke6 {[%clk 0:00:47]} 40. Kd2 {[%clk 0:00:08.4]}
40... Ra6 {[%clk 0:00:44.5]} 41. Bb3 {[%clk 0:00:08.6]} 41... Rxd6 {[%clk
0:00:44]} 42. Rxd6+ {[%clk 0:00:08.9]} 42... Kxd6 {[%clk 0:00:44.9]} 43. Ke3
{[%clk 0:00:08.8]} 43... Ke5 {[%clk 0:00:44.9]} 44. Ba4 {[%clk 0:00:08.4]} 44...
Nb6 {[%clk 0:00:44.8]} 45. Bb5 {[%clk 0:00:08.3]} 45... h6 {[%clk 0:00:40]} 46.
Kd3 {[%clk 0:00:04.6]} 46... Kf4 {[%clk 0:00:39.7]} 47. Bc6 {[%clk 0:00:03.4]}
47... Kg3 {[%clk 0:00:36.4]} 48. Bd5 {[%clk 0:00:01.5]} 48... Kxh3 {[%clk
0:00:35]} 49. Be6 {[%clk 0:00:01.9]} 49... Kg3 {[%clk 0:00:33.2]} 50. Bf5 {[%clk
0:00:02]} 50... Kf4 {[%clk 0:00:32.1]} 51. Be6 {[%clk 0:00:02]} 51... Ke5 {[%clk
0:00:31.6]} 52. Bf5 {[%clk 0:00:02.3]} 52... Na4 {[%clk 0:00:30.4]} 53. Kc2
{[%clk 0:00:02.1]} 53... Nc3 {[%clk 0:00:30.1]} 54. Kd3 {[%clk 0:00:02]} 54...
Nd1 {[%clk 0:00:29.9]} 55. Kc2 {[%clk 0:00:02.3]} 55... Nf2 {[%clk 0:00:29.5]}
56. Kd2 {[%clk 0:00:01.8]} 56... Nxe4+ {[%clk 0:00:29.7]} 57. Ke3 {[%clk
0:00:01.8]} 57... Nd6 {[%clk 0:00:28.5]} 58. Bd3 {[%clk 0:00:01.1]} 58... f5
{[%clk 0:00:26.7]} 0-1